Cogmind - Beta 11.1 @@@ ROGUE MODE // 2022.06.04 @ 07:16:50 Player: Exp. Geonium Core Result: Destroyed by H-66 Slayer with Gauss Rifle Performance ------------- Evolutions (5) 2500 Regions Visited (17) 3400 Robots Destroyed (149) 745 Value Destroyed (6795) 6795 Prototype IDs (25) 500 Alien Tech Used (0) 0 Bonus (6443) 6443 TOTAL SCORE: 20383 Bonus ------- High Alert Combat Kills 1883 Follower Combat Kills 60 Entered Garrisons 1200 Used RIF Installer 3000 Aligned with FarCom 300 Cogmind --------- Core Integrity 0/1000 Matter 297/300 Energy 99/100 System Corruption 3% Temperature Cool (0) Movement Core (50) Location -5/Garrison Parts ------- > --- POWER (1) -------- (None) > --- PROPULSION (3) --- (None) > --- UTILITY (10) ----- Graphene Brace > --- WEAPON (3) ------- (None) > --- INVENTORY (5) ---- Authchip [Device] Authchip [Processor] Authchip [Processor] Relay Coupler [NC] (32) Remote Datajack Peak State ------------ > --- POWER ------------ Light Antimatter Reactor > --- PROPULSION ------- Improved Titanium Leg Flexi-carbon Leg Flexi-carbon Leg > --- UTILITY ---------- Large Storage Unit Improved Targeting Computer Improved Targeting Computer Improved Targeting Computer Kinecellerator Graphene Brace Hacking Suite System Shield Relay Coupler [NC] Relay Coupler [Sentry] > --- WEAPON ----------- AWS/Autocannon > --- INVENTORY -------- Authchip [Device] Authchip [Processor] Authchip [Processor] Authchip [Weapon] Relay Coupler [NC] Relay Coupler [NC] Trap Reconfigurator Autogun Remote Datajack Remote Datajack Powered Hammer [Rating: 84] Favorites ----------- Power Light Nuclear Core Engine Improved Deuterium Engine Power Core Light Nuclear Core Reactor Light Antimatter Reactor Propulsion Light Treads Treads Light Treads Leg Flexi-carbon Leg Utility Improved Targeting Computer Device Graphene Brace Storage Large Storage Unit Processor Improved Targeting Computer Hackware Relay Coupler [NC] Protection Light Armor Plating Weapon Autogun Energy Gun Tesla Rifle Ballistic Gun Autogun Ballistic Cannon AWS/Autocannon Launcher Rocket Launcher Special Weapon Remote Datajack Impact Weapon Powered Hammer Slashing Weapon Katana Build | -11 -10 -10 -10 -9 -8 -8 -8 -8 -7 -7 -7 -7 -7 -5 -5 -5 -5 ------- Run | Scr Mat Min Exi Min Mat Gar Mat Gar Fac Gar Sto Gar Rec Fac Gar Fac Gar Slots Evolved 10 | . . . . . 4 . . . 2 . . . . 4 . . . Power . | . . . . . . . . . . . . . . . . . . Propulsion 1 | . . . . . 1 . . . . . . . . . . . . Utility 8 | . . . . . 2 . . . 2 . . . . 4 . . . Weapon 1 | . . . . . 1 . . . . . . . . . . . . Parts Attached 120 | . 6 1 3 . 6 7 3 4 6 4 7 25 1 16 8 14 9 Power 11 | . 1 . . . . 1 . . 1 1 1 3 . 1 1 1 . Engine 4 | . 1 . . . . . . . 1 . 1 1 . . . . . Core 5 | . . . . . . 1 . . . 1 . 2 . . . 1 . Reactor 2 | . . . . . . . . . . . . . . 1 1 . . Propulsion 29 | . 2 . 1 . 1 3 1 . . 2 1 5 . 2 3 3 5 Treads 17 | . 2 . 1 . 1 3 1 . . 2 1 2 . . 1 3 . Leg 12 | . . . . . . . . . . . . 3 . 2 2 . 5 Wheel . | . . . . . . . . . . . . . . . . . . Hover . | . . . . . . . . . . . . . . . . . . Flight . | . . . . . . . . . . . . . . . . . . Utility 27 | . 1 . 1 . 2 1 1 . 4 . 4 5 . 4 . 3 1 Device 7 | . 1 . . . 1 . . . 1 . . 2 . . . 1 1 Storage 1 | . . . 1 . . . . . . . . . . . . . . Processor 5 | . . . . . 1 . 1 . 1 . . . . 2 . . . Hackware 8 | . . . . . . . . . 1 . 2 2 . 2 . 1 . Protection 6 | . . . . . . 1 . . 1 . 2 1 . . . 1 . Artifact . | . . . . . . . . . . . . . . . . . . Weapon 53 | . 2 1 1 . 3 2 1 4 1 1 1 12 1 9 4 7 3 Energy Gun 3 | . . . . . . 1 . . . . . . . . . 2 . Energy Cannon . | . . . . . . . . . . . . . . . . . . Ballistic Gun 13 | . . . 1 . 1 1 . 1 . . . 5 . 1 2 1 . Ballistic Cannon 13 | . . . . . 1 . 1 . . . . 2 . 4 1 3 1 Launcher 7 | . 2 1 . . 1 . . 2 . 1 . . . . . . . Special Weapon 7 | . . . . . . . . . 1 . 1 2 1 . . 1 1 Impact Weapon 8 | . . . . . . . . . . . . 3 . 4 1 . . Slashing Weapon 2 | . . . . . . . . 1 . . . . . . . . 1 Piercing Weapon . | . . . . . . . . . . . . . . . . . . Special Melee Weapon . | . . . . . . . . . . . . . . . . . . Unidentified Prototypes 1 | . . . . . . 1 . . . . . . . . . . . Parts Lost 41 | . 2 1 . . . . . . . 5 2 9 . . 7 3 12 Power 6 | . 1 . . . . . . . . 1 . 2 . . 1 1 . Propulsion 15 | . . . . . . . . . . 3 . 3 . . 4 2 3 Utility 11 | . . . . . . . . . . . 1 1 . . 2 . 7 Weapon 9 | . 1 1 . . . . . . . 1 1 3 . . . . 2 Highest Loss Streak 11 | . 2 1 . . . . . . . 5 2 7 . . 4 2 11 To Critical Strikes . | . . . . . . . . . . . . . . . . . . Average Slot Usage (%) 83 | . 90 76 70 71 67 89 86 97 93 86 94 88 100 79 82 84 58 Engine 1 | . 10 . . . . . . . 6 2 5 3 . . . . . Core 2 | . . . . . . 8 9 9 . 4 1 2 7 . . 1 3 Treads 17 | . 7 28 28 28 24 27 27 27 23 17 19 15 . . . 3 4 Leg 4 | . 21 . . . . . . . . . . 6 23 17 11 8 4 Device 9 | . 13 14 14 14 14 13 2 . 3 7 7 10 15 11 6 6 10 Storage 8 | . 14 14 14 14 9 9 9 9 7 7 7 7 7 5 5 5 3 Processor 9 | . . . . . 6 9 15 18 17 15 15 7 7 8 17 15 8 Hackware 7 | . . . . . . . . . 1 7 7 13 15 20 21 19 13 Protection 2 | . . . . . . 4 9 9 7 7 5 4 . . . 1 1 Ballistic Gun 6 | . . . 9 14 6 13 11 7 5 . . 9 7 1 6 3 . Launcher 4 | . 9 19 4 . 5 1 . 9 7 7 7 1 . . . . . Impact Weapon 1 | . . . . . . . . . . . . 2 7 3 3 2 . Slashing Weapon 1 | . . . . . . . . 6 7 7 7 . . . . . 2 Naked Turns . | . . . . . . . . . . . . . . . . . . Heaviest Build 97 | 14 15 13 31 31 81 43 88 88 46 45 41 44 40 97 93 96 57 Greatest Support 68 | 20 40 40 40 40 60 60 62 62 62 62 68 68 60 60 60 54 54 Greatest Overweight (x) 6 | . . . . . 2 . 1 1 . . . 6 . 1 2 2 2 Average Overweight (x) . | . . . . . . . . . . . . . . . . . . Largest Inventory Capacity 15 | . 8 8 15 15 15 15 15 15 15 15 15 15 15 15 15 15 15 Average Capacity 13 | . 8 8 11 15 15 15 15 15 15 15 15 15 15 15 15 15 12 Most Carried 15 | . 8 8 13 14 15 15 15 15 15 15 15 15 15 15 15 15 15 Average Carried 12 | . 7 8 9 13 12 13 14 14 14 12 14 13 14 12 14 14 11 Final Capacity 15 | 8 8 8 15 15 15 15 15 15 15 15 15 15 15 15 15 15 5 Final Carried 15 | 6 8 8 13 14 12 15 15 15 14 13 15 14 14 15 15 15 5 Class Distribution -------------------- 37% | Mutant 21% | Bothacker-Mutant 17% | Scavenger-Mutant 7% | Scavenger-Skirmisher 5% | Skirmisher 3% | Bothacker-Tank 3% | Scavenger-Gunner Dominant Class ---------------- Mutant | -10/Materials Mutant | -10/Mines Mutant | -10/Exiles Mutant | -9/Mines Mutant | -8/Materials Scavenger-Skirmisher | -8/Garrison Scavenger-Skirmisher | -8/Materials Scavenger-Mutant | -8/Garrison Scavenger-Mutant | -7/Factory Mutant | -7/Garrison Bothacker-Mutant | -7/Storage Bothacker-Mutant | -7/Garrison Bothacker-Mutant | -7/Recycling Bothacker-Mutant | -5/Factory Bothacker-Mutant | -5/Garrison Scavenger-Mutant | -5/Factory Mutant | -5/Garrison Resources | -11 -10 -10 -10 -9 -8 -8 -8 -8 -7 -7 -7 -7 -7 -5 -5 -5 -5 ----------- Run | Scr Mat Min Exi Min Mat Gar Mat Gar Fac Gar Sto Gar Rec Fac Gar Fac Gar Matter Collected 2226 | 200 70 . 99 . 122 100 74 . 176 73 153 491 . 181 186 218 83 Remotely . | . . . . . . . . . . . . . . . . . . Salvage Created 4848 | . 138 60 . 56 485 616 724 154 128 228 120 444 . 599 534 317 245 Parts 276 | . 5 7 . 6 26 30 42 13 8 19 9 24 . 27 28 24 8 Haulers Intercepted 3 | . . . . . . . 2 . . . 1 . . . . . . Recyclers Shooed 3 | . . . . . . . 3 . . . . . . . . . . Parts Field Recycled . | . . . . . . . . . . . . . . . . . . Retrieved Matter . | . . . . . . . . . . . . . . . . . . Parts Self-Destructed . | . . . . . . . . . . . . . . . . . . Prevented . | . . . . . . . . . . . . . . . . . . Kills | -11 -10 -10 -10 -9 -8 -8 -8 -8 -7 -7 -7 -7 -7 -5 -5 -5 -5 ------- Run | Scr Mat Min Exi Min Mat Gar Mat Gar Fac Gar Sto Gar Rec Fac Gar Fac Gar Combat Hostiles Destroyed 132 | . 4 2 . 1 9 11 13 10 2 14 1 13 . 19 21 8 4 Melee 10 | . 1 . . . . . . . 1 2 1 1 . . . . 4 Guns 31 | . 2 . . 1 3 11 4 1 1 . . 2 . . 5 1 . Cannons 62 | . . . . . 5 . 9 . . . . 6 . 19 16 7 . AOE 28 | . 1 2 . . 1 . . 9 . 12 . 3 . . . . . Classes Destroyed 17 | . 1 2 . 2 6 . 3 1 . . . 1 . . 1 . . Worker 2 | . . . . 1 . . . . 1 . . . . . . . . Builder 4 | . . 1 . . 3 . . . . . . . . . . . . Tunneler 1 | . . 1 . . . . . . . . . . . . . . . Hauler 3 | . . . . . . . 2 . . . 1 . . . . . . Recycler 3 | . . . . . 2 . 1 . . . . . . . . . . Operator 1 | . . . . . . . 1 . . . . . . . . . . Watcher 3 | . . . . . 1 . 2 . . . . . . . . . . Swarmer 45 | . . . . . 3 . 3 4 . 9 . 4 . 9 13 . . Grunt 55 | . 4 2 . . 3 6 5 5 1 5 . 6 . 8 6 . 4 Brawler 1 | . . . . 1 . . . . . . . . . . . . . Duelist 1 | . . . . . . . . 1 . . . . . . . . . Sentry 10 | . . . . . 1 3 3 . . . 1 1 . . . 1 . Specialist 2 | . . . . . . . . . . . . 2 . . . . . Hunter 6 | . . . . . 1 2 . . . . . . . . 1 2 . Programmer 8 | . . . . . . . 1 . 1 . . . . 2 . 4 . Heavy 3 | . . . . . 1 . 1 . . . . . . . . 1 . Behemoth 1 | . . . . . . . . . . . . . . . 1 . . Best Kill Streak 16 | . 2 4 . 1 6 8 6 6 1 9 2 4 . 4 16 4 3 Combat Bots Only 16 | . 2 2 . 1 6 8 5 6 1 9 1 4 . 4 16 4 3 Max Kills in Single Turn 3 | . 1 2 . 1 2 1 2 3 1 2 1 2 . 1 1 1 1 Gunslinging . | . . . . . . . . . . . . . . . . . . Exploded 3 | . 1 1 . . 1 . . 3 . 2 . 2 . . . . . Melee 1 | . 1 . . . . . . . 1 1 1 1 . . . . 1 Uniques/NPCs Destroyed . | . . . . . . . . . . . . . . . . . . Combat | -11 -10 -10 -10 -9 -8 -8 -8 -8 -7 -7 -7 -7 -7 -5 -5 -5 -5 -------- Run | Scr Mat Min Exi Min Mat Gar Mat Gar Fac Gar Sto Gar Rec Fac Gar Fac Gar Damage Taken 8984 | . 461 73 . . 172 516 212 171 233 665 411 1750 . 543 1204 1272 1301 Core 1729 | . 106 23 . . 16 80 25 15 31 96 78 242 . 81 204 173 559 Absorbed by Shields 1135 | . . . . . . . . . . . . . . 309 661 . 165 Core Remaining (%) 64 | 100 . . . 48 . . . 75 . . . . 36 . . . . Volleys Fired 146 | . 12 6 . . 8 9 11 12 14 14 8 20 5 . 24 3 . Largest 3 | . 2 1 . . 1 1 1 2 1 1 1 3 1 . 2 3 . Hottest 155 | . 90 33 . . 33 50 28 63 28 33 5 69 5 . 46 155 . Shots Fired 432 | . 22 6 . 2 39 52 53 17 14 14 8 47 5 34 91 28 . Gun 224 | . 18 . . 2 22 52 27 5 11 . . 30 . . 48 9 . Cannon 140 | . . . . . 9 . 26 . . . . 9 . 34 43 19 . Launcher 47 | . 4 6 . . 8 . . 12 . 14 . 3 . . . . . Special 21 | . . . . . . . . . 3 . 8 5 5 . . . . Kinetic 332 | . . . . 2 31 44 53 5 11 . . 39 . 34 91 22 . Thermal 9 | . 9 . . . . . . . . . . . . . . . . Explosive 47 | . 4 6 . . 8 . . 12 . 14 . 3 . . . . . Electromagnetic 23 | . 9 . . . . 8 . . . . . . . . . 6 . Robot Hit Streak 27 | . 4 4 . 1 6 22 27 3 8 6 14 26 1 17 17 16 . Robot Miss Streak 4 | . 2 1 . 1 2 2 1 1 1 1 . 2 2 2 4 1 . Penetration Max . | . . . . . . . . . . . . . . . . . . Secondary Targets 2 | . . . . . . . . . . . . 1 . . 1 . . Max Gunslinging Chain 1 | . . . . . . . . . . . . 1 . . 1 . . Autonomous 224 | . . . . 2 31 43 43 . . . . 9 . 34 43 19 . Shots Hit Robots 365 | . 14 4 . 1 26 47 46 5 17 13 10 44 2 29 73 27 7 Core Hits 197 | . 11 5 . 2 17 21 19 22 6 22 2 19 . 15 23 9 4 Critical Kills 1 | . . . . . . . 1 . . . . . . . . . . Critical Parts Destroyed 1 | . . . . . . 1 . . . . . . . . . . . Critical Strikes 14 | . 1 . . . 1 1 2 . . . . . . 1 5 1 2 Burn 1 | . 1 . . . . . . . . . . . . . . . . Destroy 2 | . . . . . . 1 1 . . . . . . . . . . Blast 9 | . . . . . 1 . 1 . . . . . . 1 5 1 . Sever 2 | . . . . . . . . . . . . . . . . . 2 Melee Attacks 49 | . . . . . . . . . 7 8 2 15 . 5 . 2 10 Impact 22 | . . . . . . . . . . . . 15 . 5 . 2 . Slashing 27 | . . . . . . . . . 7 8 2 . . . . . 10 Piercing . | . . . . . . . . . . . . . . . . . . Sneak Attacks 3 | . . . . . . . . . 1 . 2 . . . . . . Combat Hostiles 1 | . . . . . . . . . . . 1 . . . . . . Follow-up Attacks . | . . . . . . . . . . . . . . . . . . Damage Inflicted 17905 | . 435 380 . 27 1343 1258 1846 1011 344 1380 133 1445 . 2651 3773 1527 352 Guns 3691 | . 143 . . 23 381 1258 536 41 189 . . 415 . . 510 195 . Cannons 9787 | . . . . . 503 . 1310 . . . . 728 . 2651 3263 1332 . Explosions 3514 | . 281 376 . . 459 . . 970 . 1311 . 117 . . . . . Melee 875 | . . . . . . . . . 141 69 128 185 . . . . 352 Ramming 38 | . 11 4 . 4 . . . . 14 . 5 . . . . . . Kinetic 13076 | . . . . 23 884 1123 1846 41 189 . . 1143 . 2651 3773 1403 . Thermal 161 | . 161 . . . . . . . . . . . . . . . . Explosive 3403 | . 170 376 . . 459 . . 970 . 1311 . 117 . . . . . Electromagnetic 352 | . 93 . . . . 135 . . . . . . . . . 124 . Impact 185 | . . . . . . . . . . . . 185 . . . . . Slashing 690 | . . . . . . . . . 141 69 128 . . . . . 352 Piercing . | . . . . . . . . . . . . . . . . . . Highest Corruption 3 | . . . . . . . . . . . . . . . . 3 3 Average Corruption 3 | . . . . . . . . . . . . . . . . 3 3 Corruption Purged . | . . . . . . . . . . . . . . . . . . Corruption Blocked . | . . . . . . . . . . . . . . . . . . Effects 5 | . . . . . . . . . . . . . . . . 2 3 Matter Fused 1 | . . . . . . . . . . . . . . . . . 1 Heat Flow Errors 1 | . . . . . . . . . . . . . . . . . 1 Energy Discharges 1 | . . . . . . . . . . . . . . . . 1 . Data Loss (minor) 1 | . . . . . . . . . . . . . . . . . 1 Data Loss (major) 1 | . . . . . . . . . . . . . . . . 1 . Overload Shots . | . . . . . . . . . . . . . . . . . . Overflow Damage 1788 | . 5 42 . . 141 . 72 6 14 36 . 178 . 463 650 181 . Projectiles 1630 | . . . . . 132 . 72 . . . . 132 . 463 650 181 . Explosions 103 | . 5 42 . . 9 . . 6 . 36 . 5 . . . . . Melee 55 | . . . . . . . . . 14 . . 41 . . . . . Knockbacks 39 | . . . . . . . 6 . . . . 2 . 11 13 7 . Impact . | . . . . . . . . . . . . . . . . . . Kinetic 34 | . . . . . . . 5 . . . . 2 . 9 11 7 . Secondary 5 | . . . . . . . 1 . . . . . . 2 2 . . Self-Inflicted Damage 177 | . 100 40 . . . . . . . 37 . . . . . . . Shots 7 | . 3 1 . . . . . . . 3 . . . . . . . Rammed 6 | . 1 1 . 2 . . . . 1 . 1 . . . . . . Targets Rammed 13 | . 7 1 . 3 . . . . 1 . 1 . . . . . . Kicked 5 | . 5 . . . . . . . . . . . . . . . . Crushed 2 | . 1 . . 1 . . . . . . . . . . . . . Highest Temperature 366 | . 366 . . . 12 53 6 81 . 21 10 150 . . . 99 235 Average Temperature 93 | . 163 . . . 9 13 6 46 . 8 8 91 . . . 50 135 Received Heat Transfer 2345 | . 222 18 . . 54 198 81 108 81 162 96 429 . 96 137 282 381 Effects 2 | . 2 . . . . . . . . . . . . . . . . Shutdowns 1 | . 1 . . . . . . . . . . . . . . . . Energy Bleed 1 | . 1 . . . . . . . . . . . . . . . . Siege Activations . | . . . . . . . . . . . . . . . . . . Robots Corrupted . | . . . . . . . . . . . . . . . . . . Combat Hostiles . | . . . . . . . . . . . . . . . . . . Parts Fried 6 | . 1 . . . . 1 . . . . . 1 . . 1 2 . Impact Corruptions 4 | . . . . . . . . . . . . 1 . 2 1 . . Robots Melted . | . . . . . . . . . . . . . . . . . . Combat Hostiles . | . . . . . . . . . . . . . . . . . . Parts Melted . | . . . . . . . . . . . . . . . . . . Heat Transferred 322 | . 322 . . . . . . . . . . . . . . . . Parts Sabotaged 4 | . . . . . . . . . . . . . . . . 1 3 Parts Stolen . | . . . . . . . . . . . . . . . . . . Parts Stripped . | . . . . . . . . . . . . . . . . . . Power Chain Reactions 1 | . 1 . . . . . . . . . . . . . . . . Missiles Intercepted . | . . . . . . . . . . . . . . . . . . Alert | -11 -10 -10 -10 -9 -8 -8 -8 -8 -7 -7 -7 -7 -7 -5 -5 -5 -5 ------- Run | Scr Mat Min Exi Min Mat Gar Mat Gar Fac Gar Sto Gar Rec Fac Gar Fac Gar Peak Influence 1417 | . 145 187 . 41 374 585 752 761 496 549 343 503 321 1417 1311 901 564 Initial 1034 | . . 56 . . 15 243 284 488 399 239 267 196 226 1034 828 688 494 Average 492 | . 67 82 . 7 221 467 441 704 402 455 308 392 260 1220 1144 731 512 Maximum Alert Level 4 | . . . . . 1 2 3 3 2 2 1 2 1 4 4 3 2 Low Security (%) 19 | . 100 100 . 100 41 . . . . . . 5 . . . . . Level 1 27 | . . . . . 58 34 51 . 64 26 100 30 100 . . . . Level 2 29 | . . . . . . 65 35 23 35 73 . 64 . . . 50 100 Level 3 12 | . . . . . . . 12 76 . . . . . 16 28 49 . Level 4 10 | . . . . . . . . . . . . . . 83 71 . . Level 5 . | . . . . . . . . . . . . . . . . . . High Security . | . . . . . . . . . . . . . . . . . . Max Security . | . . . . . . . . . . . . . . . . . . Squads Dispatched 12 | . . . . . 3 . 2 . 1 . 1 . . 1 . 4 . Investigation 1 | . . . . . 1 . . . . . . . . . . . . Extermination 2 | . . . . . . . . . . . . . . 1 . 1 . Reinforcement 7 | . . . . . 2 . 2 . 1 . . . . . . 2 . Assault 1 | . . . . . . . . . . . . . . . . 1 . Garrison 1 | . . . . . . . . . . . 1 . . . . . . Intercept . | . . . . . . . . . . . . . . . . . . Searches Triggered 1 | . . . . . . . . . . . . . . 1 . . . Construction Impeded . | . . . . . . . . . . . . . . . . . . Haulers Reinforced . | . . . . . . . . . . . . . . . . . . Active Scanning Responses . | . . . . . . . . . . . . . . . . . . Cargo Convoy Interrupts . | . . . . . . . . . . . . . . . . . . Stealth | -11 -10 -10 -10 -9 -8 -8 -8 -8 -7 -7 -7 -7 -7 -5 -5 -5 -5 --------- Run | Scr Mat Min Exi Min Mat Gar Mat Gar Fac Gar Sto Gar Rec Fac Gar Fac Gar Distress Signals 6 | . 1 1 . . . . 2 . 2 . . . . . . . . Communications Jammed . | . . . . . . . . . . . . . . . . . . Distress Signals . | . . . . . . . . . . . . . . . . . . Times Spotted 191 | . 8 2 . . 10 10 16 8 11 15 5 21 9 23 25 16 12 Peak Tracking Total 9 | . 4 2 . . 6 3 4 7 7 7 3 9 7 6 9 7 7 Tactical Retreats 8 | . . . . . . . 1 1 . . . . . . 4 1 1 Traps | -11 -10 -10 -10 -9 -8 -8 -8 -8 -7 -7 -7 -7 -7 -5 -5 -5 -5 ------- Run | Scr Mat Min Exi Min Mat Gar Mat Gar Fac Gar Sto Gar Rec Fac Gar Fac Gar Traps Triggered 3 | . . . . . 1 . . . . . . . . . . . 2 Indirectly . | . . . . . . . . . . . . . . . . . . Trap Hack Attempts . | . . . . . . . . . . . . . . . . . . Triggered . | . . . . . . . . . . . . . . . . . . Disarmed . | . . . . . . . . . . . . . . . . . . Reprogrammed . | . . . . . . . . . . . . . . . . . . Reused . | . . . . . . . . . . . . . . . . . . Traps Reconfigurated 4 | . . . . . 2 2 . . . . . . . . . . . Traps Extracted . | . . . . . . . . . . . . . . . . . . Installed . | . . . . . . . . . . . . . . . . . . Triggered . | . . . . . . . . . . . . . . . . . . Machines | -11 -10 -10 -10 -9 -8 -8 -8 -8 -7 -7 -7 -7 -7 -5 -5 -5 -5 ---------- Run | Scr Mat Min Exi Min Mat Gar Mat Gar Fac Gar Sto Gar Rec Fac Gar Fac Gar Machines Disabled 11 | . 1 . . . . 2 2 2 . 1 . 2 . . 1 . . Max in Single Turn 2 | . 1 . . . . 1 1 2 . 1 . 1 . . 1 . . Garrison Relay 5 | . . . . . . 2 . . . 1 . 2 . . . . . Machines Sabotaged . | . . . . . . . . . . . . . . . . . . Garrisons Compromised . | . . . . . . . . . . . . . . . . . . Overloaded Fab Kills . | . . . . . . . . . . . . . . . . . . Hacking | -11 -10 -10 -10 -9 -8 -8 -8 -8 -7 -7 -7 -7 -7 -5 -5 -5 -5 --------- Run | Scr Mat Min Exi Min Mat Gar Mat Gar Fac Gar Sto Gar Rec Fac Gar Fac Gar Machines Accessed 16 | . 1 . 1 . 1 . 2 . 1 . 2 . 3 4 . 1 . Terminals 7 | . 1 . . . . . 1 . . . 1 . 1 3 . . . Fabricators . | . . . . . . . . . . . . . . . . . . Repair Stations . | . . . . . . . . . . . . . . . . . . Recycling Units 2 | . . . . . . . . . . . . . 2 . . . . Scanalyzers . | . . . . . . . . . . . . . . . . . . Garrison Access 6 | . . . . . 1 . 1 . 1 . 1 . . 1 . 1 . Total Hacks 25 | . 1 . 1 . 1 . 5 . 2 . 2 . 5 7 . 1 . Successful 16 | . 1 . 1 . 1 . 2 . 1 . 2 . 3 4 . 1 . Failed 8 | . . . . . . . 3 . 1 . . . 2 2 . . . Catastrophic 2 | . . . . . . . . . . . . . 1 1 . . . Database Lockouts 1 | . . . . . . . . . . . . . . 1 . . . Manual 14 | . 1 . 1 . . . 4 . 1 . . . 2 5 . . . Terminals 12 | . 1 . . . . . 3 . . . 1 . 1 6 . . . Fabricators . | . . . . . . . . . . . . . . . . . . Repair Stations . | . . . . . . . . . . . . . . . . . . Recycling Units 4 | . . . . . . . . . . . . . 4 . . . . Scanalyzers . | . . . . . . . . . . . . . . . . . . Garrison Access 8 | . . . . . 1 . 2 . 2 . 1 . . 1 . 1 . Terminal Hacks 6 | . 1 . 1 . . . . . . . 1 . . 3 . . . Part Schematic 1 | . . . . . . . . . . . . . . 1 . . . Open Door 1 | . . . . . . . . . . . 1 . . . . . . Branch Access Points 1 | . 1 . . . . . . . . . . . . . . . . Garrison Index 1 | . . . . . . . . . . . . . . 1 . . . Zone Layout 1 | . . . . . . . . . . . . . . 1 . . . EX-Prototype ID Bank 1 | . . . 1 . . . . . . . . . . . . . . Fabricator Hacks . | . . . . . . . . . . . . . . . . . . Repair Station Hacks . | . . . . . . . . . . . . . . . . . . Recycling Unit Hacks 2 | . . . . . . . . . . . . . 2 . . . . Report Inventory 1 | . . . . . . . . . . . . . 1 . . . . Retrieve Components 1 | . . . . . . . . . . . . . 1 . . . . Scanalyzer . | . . . . . . . . . . . . . . . . . . Garrison Access Hacks 6 | . . . . . 1 . 1 . 1 . 1 . . 1 . 1 . Unlock Access 6 | . . . . . 1 . 1 . 1 . 1 . . 1 . 1 . Unauthorized Hacks 2 | . . . . . . . 1 . . . . . 1 . . . . Terminals . | . . . . . . . . . . . . . . . . . . Fabricators . | . . . . . . . . . . . . . . . . . . Repair Stations . | . . . . . . . . . . . . . . . . . . Recycling Units 1 | . . . . . . . . . . . . . 1 . . . . Tunnel 1 | . . . . . . . . . . . . . 1 . . . . Scanalyzers . | . . . . . . . . . . . . . . . . . . Garrison Access 1 | . . . . . . . 1 . . . . . . . . . . Restock 1 | . . . . . . . 1 . . . . . . . . . . Data Cores Recovered . | . . . . . . . . . . . . . . . . . . Used . | . . . . . . . . . . . . . . . . . . Hacking Detections 7 | . . . . . . . 2 . 1 . . . 2 2 . . . Full Trace Events 1 | . . . . . . . . . . . . . 1 . . . . Feedback Events . | . . . . . . . . . . . . . . . . . . Feedback Blocked . | . . . . . . . . . . . . . . . . . . Robot Schematics Acquired . | . . . . . . . . . . . . . . . . . . Robots Built . | . . . . . . . . . . . . . . . . . . Authchips . | . . . . . . . . . . . . . . . . . . Time . | . . . . . . . . . . . . . . . . . . Total Robot Build Rating . | . . . . . . . . . . . . . . . . . . Part Schematics Acquired 1 | . . . . . . . . . . . . . . 1 . . . Parts Built . | . . . . . . . . . . . . . . . . . . Authchips . | . . . . . . . . . . . . . . . . . . Time . | . . . . . . . . . . . . . . . . . . Total Part Build Rating . | . . . . . . . . . . . . . . . . . . Parts Repaired . | . . . . . . . . . . . . . . . . . . Time . | . . . . . . . . . . . . . . . . . . Parts Recycled . | . . . . . . . . . . . . . . . . . . Recycled Matter . | . . . . . . . . . . . . . . . . . . Retrieved Matter . | . . . . . . . . . . . . . . . . . . Retrieved Components 1 | . . . . . . . . . . . . . 1 . . . . Parts Scanalyzed . | . . . . . . . . . . . . . . . . . . Part Schematics Acquired . | . . . . . . . . . . . . . . . . . . Parts Damaged . | . . . . . . . . . . . . . . . . . . Bothacking | -11 -10 -10 -10 -9 -8 -8 -8 -8 -7 -7 -7 -7 -7 -5 -5 -5 -5 ------------ Run | Scr Mat Min Exi Min Mat Gar Mat Gar Fac Gar Sto Gar Rec Fac Gar Fac Gar Used RIF Installer 6 | . . . . . . 1 . 1 . 1 . 1 . . 1 . 1 Coupler Efficiency 1 | . . . . . . . . 1 . . . . . . . . . Hotswap 1 | . . . . . . . . . . . . 1 . . . . . Command Fork 1 | . . . . . . . . . . . . . . . . . 1 Program Shield 1 | . . . . . . . . . . 1 . . . . . . . Autooverride 1 | . . . . . . . . . . . . . . . 1 . . Robots Hacked 13 | . . . . . . . . . 1 . 5 5 2 . . . . Non-combat 6 | . . . . . . . . . 1 . 3 . 2 . . . . Combat 7 | . . . . . . . . . . . 2 5 . . . . . Robot Hacks Applied 16 | . . . . . . . . . 2 . 7 5 2 . . . . parse_system 1 | . . . . . . . . . . . . . 1 . . . . map_walls 1 | . . . . . . . . . . . . . 1 . . . . drop_inventory 3 | . . . . . . . . . . . 3 . . . . . . purge_threat 1 | . . . . . . . . . 1 . . . . . . . . find_garrison 1 | . . . . . . . . . . . 1 . . . . . . wipe_record 1 | . . . . . . . . . . . 1 . . . . . . reboot_system 1 | . . . . . . . . . . . 1 . . . . . . overwrite_iff 5 | . . . . . . . . . . . . 5 . . . . . formatsys_low 1 | . . . . . . . . . 1 . . . . . . . . formatsys_high 1 | . . . . . . . . . . . 1 . . . . . . Relay Couplers Released 22 | . . . . . . 6 3 . . 5 . 8 . . . . . Machine Destruction 19 | . . . . . . 6 . . . 5 . 8 . . . . . Programmers 3 | . . . . . . . 3 . . . . . . . . . . Attached 6 | . . . . . . . . . 1 . 2 2 . . . 1 . Fabnet Peak Effective % . | . . . . . . . . . . . . . . . . . . Robots Rewired 3 | . . . . . . . . . . . . . 3 . . . . Allies Hacked . | . . . . . . . . . . . . . . . . . . Hacks Repelled . | . . . . . . . . . . . . . . . . . . Allies | -11 -10 -10 -10 -9 -8 -8 -8 -8 -7 -7 -7 -7 -7 -5 -5 -5 -5 -------- Run | Scr Mat Min Exi Min Mat Gar Mat Gar Fac Gar Sto Gar Rec Fac Gar Fac Gar Total Allies 10 | . . . . . . . . . 1 . 1 5 3 . . . . Largest Group 3 | . . . . . . . . . 1 . 1 2 3 1 1 . . Highest-Rated Group 72 | . . . . . . . . . 26 . 32 61 72 40 40 . . Highest-Rated Ally 40 | . . . . . . . . . 26 . 32 32 40 40 40 . . Total Orders . | . . . . . . . . . . . . . . . . . . Ally Attacks 38 | . . . . . . . . . . . 3 9 26 . . . . Total Damage 515 | . . . . . . . . . . . 181 181 153 . . . . Kills 9 | . . . . . . . . . . . . 4 5 . . . . Allies Corrupted . | . . . . . . . . . . . . . . . . . . Allies Melted . | . . . . . . . . . . . . . . . . . . Intel | -11 -10 -10 -10 -9 -8 -8 -8 -8 -7 -7 -7 -7 -7 -5 -5 -5 -5 ------- Run | Scr Mat Min Exi Min Mat Gar Mat Gar Fac Gar Sto Gar Rec Fac Gar Fac Gar Robot Analysis Total . | . . . . . . . . . . . . . . . . . . Derelict Logs Recovered . | . . . . . . . . . . . . . . . . . . Drone Launches . | . . . . . . . . . . . . . . . . . . Drone Recoveries . | . . . . . . . . . . . . . . . . . . Exploration | -11 -10 -10 -10 -9 -8 -8 -8 -8 -7 -7 -7 -7 -7 -5 -5 -5 -5 ------------- Run | Scr Mat Min Exi Min Mat Gar Mat Gar Fac Gar Sto Gar Rec Fac Gar Fac Gar Turns Passed 6443 | . 168 541 589 281 283 454 368 360 366 383 191 649 337 425 402 465 181 Spaces Moved 3442 | 1 78 329 360 173 143 253 143 196 195 201 91 312 263 258 143 199 104 Core 56 | . . . . . . . . . . . . 1 . . . . 55 Treads 2390 | . 28 329 360 173 143 253 143 196 195 201 91 202 . . . 52 24 Legs 996 | 1 50 . . . . . . . . . . 109 263 258 143 147 25 Wheels . | . . . . . . . . . . . . . . . . . . Hover . | . . . . . . . . . . . . . . . . . . Flight . | . . . . . . . . . . . . . . . . . . Fastest Speed 50 | 120 120 160 160 160 160 160 158 158 158 157 163 120 120 120 123 120 50 Average Speed 156 | 120 134 160 160 160 166 161 183 166 158 163 163 149 120 131 172 203 107 Slowest Speed 350 | 120 160 160 160 160 320 163 238 238 158 165 165 350 120 193 265 260 260 Overloaded Moves . | . . . . . . . . . . . . . . . . . . Propulsion Burnouts . | . . . . . . . . . . . . . . . . . . Robots Hopped . | . . . . . . . . . . . . . . . . . . Cave-ins Triggered . | . . . . . . . . . . . . . . . . . . Exploration Rate (%) 32 | 3 23 52 65 51 25 41 26 47 8 36 22 46 63 11 32 5 37 Regions Visited 17 Branch Regions 5 Pre-discovered Areas 1 | . . . . . . . . . . . . . 1 . . . . Known Exits Taken 7 | . 1 . . . 1 . 1 . 1 . 1 . . 1 . 1 . Unknown Exits Taken 5 | 1 . 1 1 1 . . . . . . . . 1 . . . . Scrap Searched 1 | . . . . 1 . . . . . . . . . . . . . Spaces Dug 30 | . . 13 . . . . . 5 1 . . 4 . 5 . 2 . Terrain Destroyed 246 | . 13 38 . 2 91 3 12 24 1 27 . 17 . 9 5 4 . Melee 12 | . . . . . . . . . 1 . . 4 . 5 . 2 . Projectile 52 | . . . . 2 24 3 12 . . . . . . 4 5 2 . AOE 182 | . 13 38 . . 67 . . 24 . 27 . 13 . . . . . Terrain Rammed . | . . . . . . . . . . . . . . . . . . Walls Destroyed . | . . . . . . . . . . . . . . . . . . Machines Disabled . | . . . . . . . . . . . . . . . . . . Actions | -11 -10 -10 -10 -9 -8 -8 -8 -8 -7 -7 -7 -7 -7 -5 -5 -5 -5 --------- Run | Scr Mat Min Exi Min Mat Gar Mat Gar Fac Gar Sto Gar Rec Fac Gar Fac Gar Total 4243 | . 120 337 376 176 181 289 239 214 230 231 124 444 284 338 258 248 154 Wait 312 | . . 1 . . 14 11 76 . . . 7 53 1 44 82 21 2 Move 3429 | . 77 328 359 172 143 252 142 195 194 200 91 311 262 258 142 199 104 Hop . | . . . . . . . . . . . . . . . . . . Pick Up 59 | . 10 . 7 1 6 5 3 1 3 3 6 6 5 1 . 1 1 Fast Attach 53 | . 1 1 1 . . 3 2 1 2 . 2 14 . 5 7 9 5 Attach 51 | . 3 . . . 6 1 1 3 3 4 3 8 . 10 1 4 4 Detach 21 | . . . 1 . . 1 . . . 1 . 4 . 9 1 3 1 Swap 16 | . 2 . 2 . . 3 . . 1 . 2 3 1 1 . 1 . Drop 69 | . 8 . 6 . 4 4 4 2 5 1 2 10 5 5 1 5 7 Fire 146 | . 12 6 . . 8 9 11 12 14 14 8 20 5 . 24 3 . Melee 49 | . . . . . . . . . 7 8 2 15 . 5 . 2 10 Ram . | . . . . . . . . . . . . . . . . . . Kick 5 | . 5 . . . . . . . . . . . . . . . . Crush 8 | . 2 1 . 3 . . . . 1 . 1 . . . . . . Escape Stasis 20 | . . . . . . . . . . . . . . . . . 20 Rewire 5 | . . . . . . . . . . . . . 5 . . . . Trap . | . . . . . . . . . . . . . . . . . . Miscellaneous . | . . . . . . . . . . . . . . . . . . Route ------- -11/Scrapyard -10/Materials (discovered 2 exits: *Min x2) -10/Mines -10/Exiles (discovered 2 exits: [*Min x2]) -9/Mines (discovered 2 exits: *Mat x2) -8/Materials (discovered 2 exits: *Fac / Gar) -8/Garrison -8/Materials -8/Garrison (discovered 2 exits: *Fac x2) -7/Factory -7/Garrison -7/Storage -7/Garrison -7/Recycling -5/Factory -5/Garrison -5/Factory -5/Garrison History --------- Turn | Location | Event 1 | -11/Scrapyard | Discovered new exit (range 0) 1 | -11/Scrapyard | Entered Materials 99 | -10/Materials | Identified exit to Mines 169 | -10/Materials | Entered Mines 176 | -10/Mines | Received a Rocket Launcher from a helpful Derelict 314 | -10/Mines | Build established: Mutant 401 | -10/Mines | Core integrity fell below 50% 595 | -10/Mines | Assembled infested the area 704 | -10/Mines | Deemed a non-threat by the Exiles lab entrance 704 | -10/Mines | Discovered new exit (range 5) 710 | -10/Mines | Entered Exiles 736 | -10/Exiles | Discovered new exit (range 15) 750 | -10/Exiles | Met 8R-AWN 778 | -10/Exiles | Met EX-HEX 821 | -10/Exiles | Met EX-BIN 840 | -10/Exiles | Aligned with FarCom system 842 | -10/Exiles | Given EX-Vault access code 878 | -10/Exiles | Opened EX-Vault 887 | -10/Exiles | Found Trap Reconfigurator 892 | -10/Exiles | Found AWS/Gauss 900 | -10/Exiles | Found AWS/Autocannon 936 | -10/Exiles | Warned to stay clear of 0b10 Research branches 1227 | -10/Exiles | Met EX-DEC 1287 | -10/Exiles | Discovered new exit (range 10) 1299 | -10/Exiles | Stole three prototypes: AWS/Gauss, Trap Reconfigurator, AWS/Autocannon 1299 | -10/Exiles | Entered Mines 1379 | -9/Mines | Discovered new exit (range 10) 1574 | -9/Mines | Discovered new exit (range 5) 1580 | -9/Mines | Entered Materials 1580 | -8/Materials | Evolved 4 slots: Propulsion x1, Utility x2, Weapon x1 1746 | -8/Materials | Discovered new exit (range 15) 1863 | -8/Materials | Identified exit to Garrison 1863 | -8/Materials | Entered Garrison 1871 | -8/Garrison | Installed Relay Interface Framework 1902 | -8/Garrison | Triggered checkpoint 1942 | -8/Garrison | Garrison Relay disabled 2006 | -8/Garrison | Triggered checkpoint 2093 | -8/Garrison | Destroyed 8 combat bots 2130 | -8/Garrison | Triggered checkpoint 2152 | -8/Garrison | Garrison Relay disabled 2303 | -8/Garrison | Discovered new exit (range 9) 2317 | -8/Garrison | Entered Materials 2366 | -8/Materials | Build established: Scavenger-Skirmisher 2665 | -8/Materials | Identified exit to Garrison 2685 | -8/Materials | Entered Garrison 2738 | -8/Garrison | Triggered checkpoint 2863 | -8/Garrison | Discovered new exit (range 10) 2944 | -8/Garrison | Triggered checkpoint 3012 | -8/Garrison | Discovered new exit (range 10) 3039 | -8/Garrison | Expanded RIF knowledge: Coupler Efficiency 3041 | -8/Garrison | Build established: Scavenger-Mutant 3045 | -8/Garrison | Entered Factory 3045 | -7/Factory | Evolved 2 slots: Utility x2 3047 | -7/Factory | FarCom data flow suspended 3166 | -7/Factory | Identified exit to Garrison 3411 | -7/Factory | Entered Garrison 3419 | -7/Garrison | Expanded RIF knowledge: Program Shield 3444 | -7/Garrison | Triggered checkpoint 3510 | -7/Garrison | Triggered checkpoint 3512 | -7/Garrison | Triggered checkpoint 3566 | -7/Garrison | Destroyed 9 combat bots 3574 | -7/Garrison | Lost 5 parts (1p3n1w) 3626 | -7/Garrison | Discovered new exit (range 13) 3710 | -7/Garrison | Triggered checkpoint 3717 | -7/Garrison | Garrison Relay disabled 3794 | -7/Garrison | Entered Storage 3969 | -7/Storage | Garrison activated, responded to threat 3985 | -7/Storage | Identified exit to Garrison 3985 | -7/Storage | Entered Garrison 4080 | -7/Garrison | Triggered checkpoint 4121 | -7/Garrison | Garrison Relay disabled 4182 | -7/Garrison | Triggered checkpoint 4298 | -7/Garrison | Discovered new exit (range 9) 4324 | -7/Garrison | Expanded RIF knowledge: Hotswap 4388 | -7/Garrison | Triggered checkpoint 4416 | -7/Garrison | Core integrity fell below 50% 4455 | -7/Garrison | Lost 7 parts (1p3n1u2w) 4599 | -7/Garrison | Garrison Relay disabled 4634 | -7/Garrison | Entered Recycling 4668 | -7/Recycling | Spotter reported a threat 4683 | -7/Recycling | Spotter reported a threat 4685 | -7/Recycling | Spotter reported a threat 4705 | -7/Recycling | Spotter reported a threat 4708 | -7/Recycling | Spotter reported a threat 4713 | -7/Recycling | Spotter reported a threat 4725 | -7/Recycling | Build established: Bothacker-Mutant 4731 | -7/Recycling | Spotter reported a threat 4731 | -7/Recycling | Spotter reported a threat 4738 | -7/Recycling | Spotter reported a threat 4754 | -7/Recycling | Spotter reported a threat 4761 | -7/Recycling | Spotter reported a threat 4784 | -7/Recycling | Spotter reported a threat 4859 | -7/Recycling | Spotter reported a threat 4885 | -7/Recycling | Spotter reported a threat 4885 | -7/Recycling | Spotter reported a threat 4906 | -7/Recycling | Spotter reported a threat 4926 | -7/Recycling | Spotter reported a threat 4931 | -7/Recycling | Spotter reported a threat 4933 | -7/Recycling | Spotter reported a threat 4940 | -7/Recycling | Discovered new exit (range 16) 4971 | -7/Recycling | Entered Factory 4971 | -5/Factory | Accompanied by 1 ally 4971 | -5/Factory | Evolved 4 slots: Utility x4 5271 | -5/Factory | Search patrols dispatched 5274 | -5/Factory | Central database locked down 5396 | -5/Factory | Identified exit to Garrison 5396 | -5/Factory | Entered Garrison 5396 | -5/Garrison | Accompanied by 1 ally 5437 | -5/Garrison | Spotted B-75 Beast 5447 | -5/Garrison | Triggered checkpoint 5458 | -5/Garrison | Destroyed B-75 Beast 5499 | -5/Garrison | Triggered checkpoint 5556 | -5/Garrison | Destroyed 16 combat bots 5556 | -5/Garrison | Lost 4 parts (1p2n1u) 5718 | -5/Garrison | Lost 3 parts (2n1u) 5752 | -5/Garrison | Discovered new exit (range 11) 5790 | -5/Garrison | Expanded RIF knowledge: Autooverride 5798 | -5/Garrison | Entered Factory 5990 | -5/Factory | Build established: Scavenger-Mutant 6098 | -5/Factory | First assault squad dispatched 6263 | -5/Factory | Identified exit to Garrison 6263 | -5/Factory | Entered Garrison 6276 | -5/Garrison | Expanded RIF knowledge: Command Fork 6306 | -5/Garrison | Triggered checkpoint 6384 | -5/Garrison | Core integrity fell below 50% 6407 | -5/Garrison | Core integrity fell below 20% 6412 | -5/Garrison | Spotted B-75 Beast 6416 | -5/Garrison | Triggered checkpoint 6444 | -5/Garrison | Destroyed by H-66 Slayer with Gauss Rifle Last Messages --------------- 06423_ Field strength at 94. 06424_ Field strength at 88. 06425_ Field strength at 82. 06426_ Field strength at 76. 06427_ Field strength at 70. 06428_ Field strength at 64. 06429_ Field strength at 58. 06430_ Field strength at 52. 06431_ Field strength at 46. 06432_ System corrupted: Heat flow error (+275). 06432_ Field strength at 40. 06433_ Field strength at 34. 06434_ Field strength at 28. 06435_ Field strength at 22. 06435_ Slug penetrates Wall. 06435_ Relay Coupler [NC] destroyed. 06436_ Field strength at 11. 06437_ Field strength at 5. 06438_ Stasis field depleted. 06444_ Penetrated by Slug. Map ----- +----------------------------------------------------+ | ?# ????????# #?????# #????????????????????????? | | ## ##""""## #?????# #????????????????????????? | | # #?????# #????????????????????????? | | # #????? #????????????????????????? | | # #????? #????????????????????????? | | # ## ## #?????####????????????????????????? | | # ## ## ###???????????????????????????????? | | " #???????????????????????????????? | | " #???????????????????????????????? | | " #???????????????????????????????? | | " +???????????????????????????????? | | # ## ## ### ??????????????????????????????? | | # ??# ## ###/########??????????????????????? | | # #??????????????????????? | | # #??????????????????????? | | # ^h #??????????????????????? | | ## ##""""############;h #??????????????????????? | | ?# ??????????????????## #??????????????????????? | | ??????????????????????# #??????????????????????? | | ??????????????????????# #??????????????????????? | | ??????????????????????# #??????????????????????? | | ??????????????????????# #??????????????????????? | | ??????????????????????# ##"""######????????????? | | ??????????????????????# ?????????? | | ??????????????????????# ?????????? | | ??????????????????????# @########## ???????????? | | ??????????????????????# #??????????????????????? | | ??????????????????????# #??????????????????????? | | ??????????????????????# #??????????????????????? | | ??????????????????????# #??????????????????????? | | ??????????????????????# #??????????????????????? | | ??????????????????????# #??????????????????????? | | ??????????????????????# #??????????????????????? | | ??????????????????????# #??????????????????????? | | ??????????????????????# #??????????????????????? | | ??????????????????????# #??????????????????????? | | ??????????????????????# #??????????????????????? | | ??????????????????????# #??????????????????????? | | ??????????????????????# ???????????????????????? | | ??????????????????????# ???????????????????????? | | ??????????????????????? ???????????????????????? | | ?????????????????????????????????????????????????? | | ?????????????????????????????????????????????????? | | ?????????????????????????????????????????????????? | | ?????????????????????????????????????????????????? | | ?????????????????????????????????????????????????? | | ?????????????????????????????????????????????????? | | ?????????????????????????????????????????????????? | | ?????????????????????????????????????????????????? | | ?????????????????????????????????????????????????? | +----------------------------------------------------+ Best States ------------- Heat Dissipation 54 Energy Generation 21 Energy Capacity 800 Matter Stores 300 Matter Capacity 300 Sight Range 16 Terrain Scan Density 10 Armor Coverage 600 Evasion (%) 55 Targeting Accuracy 18 Recoil Reduction 3 Kinecelleration 30 Salvage Targeting 1 Offensive Hacking 10 Defensive Hacking 10 Relay Coupler Types 3 Relay Coupler Value 66 Authchip Count 4 Item Schematics ----------------- Adv. Hacking Suite | -5/Factory | Hacked Robot Schematics ------------------ None Fabricated ------------ Nothing Alien Tech Used ----------------- None Achievements -------------- None Challenges ------------ None Game ------ Seed OmegaRiotKatana Manual? 0 Play Time 01:03:30 Cumulative 206.4 hours Start 2022.06.04 @ 05:53:33 End 2022.06.04 @ 07:16:50 Sessions 1 Manual Loads 0 Difficulty Rogue Special Mode None Game No. 270 Rogue 270 Adventurer 0 Explorer 0 Win Type - Total 10 Types 8/0/1/1/0/0/0/0/0 Lore% 60 Gallery% 81 Achievement% 71 Wizard Run 0 Options --------- ASCII 0 Keyboard 0 Movement Numpad Keybinds 0 Fullscreen 1 Font 18/Terminus Map View 76x50 Tactical HUD 1 Map Filters NONE Filters NONE Steam 1 RUN: 29625a0b-41e8-4ff6-9006-337e316d8aae